bitfinex/quotes_SOLUSD_20250814
["timestamp","ask_amount","ask_price","bid_price","bid_amount"]
[1755139081824,11.82705406,203.07,203.06,37.34]
[1755139082010,11.82705406,203.07,203.06,38.02]
[1755139082812,3.66579515,203.07,203.06,38.02]
[1755139083014,8.16125891,203.08,203.07,27.57121858]
[1755139083212,8.16125891,203.08,203.07,28.25121858]
[1755139083511,8.16125891,203.1,203.07,28.25121858]
[1755139083708,8.16125891,203.1,203.08,37.96]
[1755139083909,8.16125891,203.1,203.09,0.68]
[1755139084119,8.16125891,203.1,203.09,28.25121858]
[1755139084518,8.16125891,203.11,203.09,28.25121858]
[1755139084713,8.16125891,203.11,203.1,37.92]
[1755139084910,8.16125891,203.11,203.1,73.32]
[1755139085219,8.16125891,203.11,203.1,108.72]
[1755139087235,8.16125891,203.11,203.1,108.04]
[1755139088134,8.16125891,203.11,203.1,100.21121858]
[1755139090625,8.16125891,203.11,203.1,100.89121858]
[1755139090932,8.16125891,203.11,203.1,65.49121858]
[1755139091330,8.16125891,203.11,203.1,64.81121858]
[1755139094725,8.39125891,203.11,203.03,0.68]
[1755139095043,8.16125891,203.04,203.01,0.68]
[1755139095241,3.66969,203.03,203.02,108.46]
[1755139095421,8.16125891,203.03,203.02,107.78]
[1755139095622,11.83094891,203.03,203.02,107.78]
[1755139096833,3.66969,203.03,203.02,107.78]
[1755139097032,11.83094891,203.03,203.02,107.78]
[1755139098451,11.83094891,203.03,203.02,72.38]
[1755139099235,11.83094891,203.03,203.02,73.06]
[1755139100148,11.83094891,203.03,203.02,72.38]
[1755139100342,11.83094891,203.03,203.02,36.98]
[1755139100524,11.83094891,203.03,203.02,37.66]
[1755139100725,11.83094891,203.03,203.02,64.55121858]
[1755139102034,3.66969,203.03,203.02,65.23121858]
[1755139102441,8.16125891,203.03,203.02,65.23121858]
[1755139102743,11.83094891,203.03,203.02,65.23121858]
[1755139103460,11.83094891,203.03,203.02,36.98]
[1755139104967,11.83094891,203.03,203.02,107.78]
[1755139106839,3.66969,203.03,203.02,107.78]
[1755139107144,8.16125891,203.03,203.02,107.78]
[1755139107446,11.83094891,203.03,203.02,107.78]
[1755139108052,11.83094891,203.03,203.02,72.38]
[1755139109859,11.83094891,203.03,202.97,0.68]
[1755139109860,12.06094891,203.03,202.97,0.68]
[1755139110061,8.16125891,202.98,202.97,0.68]
[1755139110246,11.83094891,202.98,202.97,0.68]
[1755139110442,3.66969,202.98,202.97,0.68]
[1755139110646,8.16125891,202.98,202.97,0.68]
[1755139110848,11.83094891,202.98,202.94,0.71]
[1755139111170,8.16125891,202.95,202.94,0.71]
[1755139111373,11.83094891,202.95,202.94,36.76]
[1755139111964,19.99220782,202.95,202.9,0.71]
[1755139112169,8.16125891,202.91,202.88,28.28121858]
[1755139112378,8.16125891,202.89,202.88,27.57121858]
[1755139113040,8.16125891,202.89,202.88,28.28121858]
[1755139113237,8.16125891,202.89,202.88,65.00121858]
[1755139113464,8.16125891,202.89,202.88,64.98121858]
[1755139113865,8.16125891,202.89,202.88,27.57121858]
[1755139114072,8.16125891,202.89,202.88,64.27121858]
[1755139114243,8.16125891,202.89,202.86,0.71]
[1755139114443,8.39125891,202.93,202.81,27.57121858]
[1755139114444,8.16125891,202.87,202.81,27.57121858]
[1755139114663,8.16125891,202.83,202.82,36.7]
[1755139115068,8.16125891,202.83,202.82,108.21]
[1755139115662,0.23,202.91,202.82,108.21]
[1755139115857,8.16125891,202.83,202.82,107.5]
[1755139116053,8.16125891,202.83,202.82,72.1]
[1755139116249,0.23,202.99,202.82,72.43247749]
[1755139116466,8.16125891,202.91,202.84,8.16125891]
[1755139116671,8.16125891,202.89,202.85,37.39]
[1755139116867,10.0,203.03,202.86,0.71]
[1755139116868,8.16125891,202.87,202.86,0.71]
[1755139117072,8.16125891,202.88,202.86,0.71]
[1755139117369,0.23,202.98,202.86,0.71]
[1755139117575,3.65560268,202.97,202.87,36.64]
[1755139117752,3.65560268,202.97,202.88,0.71]
[1755139117753,8.16125891,202.93,202.88,0.71]
[1755139119554,8.16125891,202.92,202.88,0.71]
[1755139120242,8.16125891,202.91,202.88,0.71]
[1755139120443,8.16125891,202.91,202.89,36.6]
[1755139120677,0.23,202.98,202.9,37.31]
[1755139120884,8.16125891,202.91,202.9,37.31]
[1755139122167,8.16125891,202.92,202.9,37.31]
[1755139122476,8.16125891,202.92,202.91,0.71]
[1755139123571,8.16125891,202.92,202.9,36.6]
[1755139123768,8.16125891,202.91,202.9,37.31]
[1755139123973,8.16125891,202.91,202.9,36.6]
[1755139124362,8.16125891,202.91,202.9,64.88121858]
[1755139124963,0.23,202.99,202.9,135.72121858]
[1755139125156,8.16125891,202.92,202.91,0.71]
[1755139125351,8.16125891,202.92,202.91,28.28121858]
[1755139125553,0.23,202.98,202.91,28.28121858]
[1755139125870,0.23,203.0,202.92,0.71]
[1755139126050,3.65044736,202.99,202.93,36.52]
[1755139126246,8.16125891,202.95,202.94,0.71]
[1755139126447,8.16125891,202.95,202.94,28.28121858]
[1755139127065,0.23,203.07,202.94,8.87125891]
[1755139127276,3.65031207,203.06,202.99,8.16125891]
[1755139127577,8.16125891,203.02,203.0,37.21]
[1755139127780,8.16125891,203.01,202.98,0.71]
[1755139127966,8.16125891,203.01,202.99,37.21]
[1755139128165,8.16125891,203.03,203.0,37.21]
[1755139128472,8.16125891,203.07,203.01,45.37125891]
[1755139128674,8.16125891,203.07,203.02,37.19]
[1755139128867,8.16125891,203.07,203.02,36.48]
[1755139129058,8.16125891,203.06,203.03,0.71]
[1755139129270,8.16125891,203.06,203.04,0.71]
[1755139129476,8.16125891,203.06,203.05,0.71]
[1755139129994,8.16125891,203.07,203.05,0.71]
[1755139130174,8.16125891,203.07,203.06,36.44]
[1755139130485,3.9656105,203.13,203.06,37.15]
[1755139130654,8.16125891,203.07,203.06,37.15]
[1755139131256,0.23,203.14,203.06,37.15]
[1755139131454,8.16125891,203.08,203.06,37.15]
[1755139131678,0.23,203.14,203.07,0.71]
[1755139131862,8.16125891,203.1,203.07,0.71]
[1755139132195,0.23,203.14,203.07,0.71]
[1755139132358,8.16125891,203.09,203.07,0.71]
[1755139132561,8.16125891,203.08,203.07,27.57121858]
[1755139134470,0.23,203.15,203.07,28.28121858]
[1755139134661,8.16125891,203.09,203.07,28.28121858]
[1755139135082,8.16125891,203.09,203.08,70.8]
[1755139135283,8.16125891,203.09,203.08,71.51]
[1755139135656,8.16125891,203.1,203.08,71.51]
[1755139135856,8.16125891,203.19,203.09,37.09]
[1755139135857,8.16125891,203.11,203.09,37.09]
[1755139136085,3.65131611,203.1,203.09,36.38]
[1755139136265,11.81257502,203.1,203.09,36.38]
[1755139136661,8.16125891,203.12,203.09,37.09]
[1755139136855,11.81242817,203.11,203.09,37.09]
[1755139137060,8.16125891,203.11,203.1,0.71]
[1755139137291,11.81248244,203.11,203.1,0.71]
[1755139137464,11.81276478,203.11,203.1,0.71]
[1755139138085,11.81276478,203.11,203.09,36.38]
[1755139138382,8.16125891,203.1,203.09,37.09]
[1755139139178,8.16125891,203.11,203.09,37.09]
[1755139139786,0.23,203.15,203.09,37.09]
[1755139139787,8.16125891,203.1,203.09,37.09]
[1755139140373,8.16125891,203.1,203.09,36.38]
[1755139140993,8.16125891,203.1,203.09,37.07]
[1755139141168,8.16125891,203.11,203.09,37.07]
[1755139141369,8.16125891,203.1,203.09,37.07]
[1755139141578,0.23,203.17,203.09,64.64121858]
[1755139141786,8.16125891,203.15,203.1,0.69]
[1755139142095,0.23,203.2,203.1,0.69]
[1755139142096,11.81065445,203.14,203.1,0.69]
[1755139142278,3.64939554,203.13,203.1,0.69]
[1755139142876,8.16125891,203.15,203.1,0.69]
[1755139142877,8.16125891,203.14,203.1,0.69]
[1755139143088,3.64809781,203.13,203.11,0.69]
[1755139143290,12.30169686,203.19,203.12,36.26]
[1755139143476,8.16125891,203.13,203.12,36.26]
[1755139145192,8.16125891,203.13,203.12,134.63121858]
[1755139145499,11.80659082,203.13,203.12,134.61121858]
[1755139146607,12.03659082,203.13,203.12,134.61121858]
[1755139147308,11.80659082,203.13,203.12,134.61121858]
[1755139147607,20.19784973,203.13,203.12,35.4]
[1755139147814,20.19784973,203.13,202.99,0.69]
[1755139148012,3.87533191,203.12,203.0,0.69]
[1755139148213,3.87533191,203.11,203.0,0.69]
[1755139148427,3.87533191,203.1,203.0,0.69]
[1755139148593,3.64533191,203.09,203.0,0.69]
[1755139148795,3.64533191,203.08,203.0,0.69]
[1755139148994,3.87533191,203.07,203.0,0.69]
[1755139149309,11.80659082,203.06,203.01,36.26]
[1755139149516,3.64533191,203.05,203.02,36.26]
[1755139149684,3.64533191,203.05,203.03,36.24]
[1755139149884,3.87533191,203.05,203.03,36.24]
[1755139150084,3.64533191,203.04,203.03,36.24]
[1755139150486,11.80659082,203.04,203.03,36.24]
[1755139150915,11.80659082,203.04,203.03,36.93]
[1755139151418,8.16125891,203.04,203.03,36.93]
[1755139151592,8.16125891,203.04,203.03,36.24]
[1755139152204,10.0,203.15,203.03,36.24]
[1755139152205,0.23,203.18,203.03,45.09125891]
[1755139152412,8.16125891,203.1,203.04,8.85125891]
[1755139152615,8.16125891,203.1,203.05,0.69]
[1755139152918,0.23,203.18,203.05,0.69]
[1755139153102,8.16125891,203.1,203.05,0.69]
[1755139154703,13.37843183,203.1,203.05,0.69]
[1755139155128,13.37843183,203.11,203.06,70.8]
[1755139155304,13.37843183,203.11,203.07,0.69]
[1755139155501,13.37843183,203.11,203.08,36.14]
[1755139155722,13.37843183,203.1,203.09,0.69]
[1755139156424,13.37843183,203.1,203.07,0.69]
[1755139156599,13.37843183,203.1,203.06,35.4]
[1755139156600,0.23,203.16,203.09,36.83]
[1755139156800,13.37843183,203.1,203.09,36.83]
[1755139156996,13.37843183,203.1,203.09,0.69]
[1755139157199,13.37843183,203.11,203.09,36.81]
[1755139157425,13.37843183,203.11,203.1,0.69]
[1755139158821,13.37843183,203.12,203.1,0.69]
[1755139159122,13.37843183,203.13,203.1,0.69]
[1755139159622,13.37843183,203.13,203.11,0.69]
[1755139159824,13.37843183,203.12,203.11,0.69]
[1755139160827,0.23,203.19,203.11,0.69]
[1755139161124,13.37843183,203.2,203.13,13.37843183]
[1755139161307,13.37843183,203.2,203.14,36.73]
[1755139161502,13.37843183,203.19,203.15,0.69]
[1755139161707,13.37843183,203.19,203.16,0.69]
[1755139161922,13.37843183,203.19,203.17,0.69]
[1755139162123,13.37843183,203.19,203.18,36.04]
[1755139162622,17.02391762,203.19,203.18,36.02]
[1755139164332,17.02391762,203.19,203.16,27.57121858]
[1755139164537,0.23,203.23,203.18,36.02]
[1755139164830,13.37843183,203.19,203.18,36.02]
[1755139165003,17.02495606,203.19,203.18,106.78]
[1755139165402,17.02495606,203.19,203.18,70.76]
[1755139165624,17.02495606,203.19,203.18,106.76]
[1755139168106,17.02495606,203.19,203.18,36.0]
[1755139170127,3.64652423,203.19,203.18,36.0]
[1755139170433,17.02495606,203.19,203.18,36.7]
[1755139171622,17.02495606,203.19,203.18,64.27121858]
[1755139172739,17.02495606,203.19,203.18,63.57121858]
[1755139173631,17.02495606,203.19,203.18,64.27121858]
[1755139175038,17.02495606,203.19,203.18,135.03121858]
[1755139175424,3.64652423,203.19,203.18,135.03121858]
[1755139175756,13.37843183,203.22,203.18,131.38469435]
[1755139175943,13.37843183,203.22,203.18,95.30469435]
[1755139176251,13.37843183,203.23,203.19,0.7]
[1755139176437,13.37843183,203.23,203.2,35.98]
[1755139176626,8.14241009,203.23,203.21,0.7]
[1755139176938,0.23,203.31,203.22,35.98]
[1755139177155,8.14241009,203.24,203.23,0.7]
[1755139177330,8.14241009,203.24,203.23,36.68]
[1755139178928,0.23,203.31,203.23,36.68]
[1755139179145,0.23,203.35,203.24,0.7]
[1755139179347,8.14241009,203.28,203.25,35.98]
[1755139179542,8.14241009,203.27,203.26,0.7]
[1755139179749,0.23,203.35,203.26,0.7]
[1755139179940,8.14241009,203.28,203.27,35.98]
[1755139180143,8.14241009,203.28,203.27,36.68]
[1755139180328,8.14241009,203.28,203.27,35.98]
[1755139180844,8.14241009,203.28,203.27,36.68]
[1755139181539,8.14241009,203.29,203.27,36.68]
[1755139181849,8.14241009,203.28,203.27,35.98]
[1755139182039,18.14241009,203.45,203.27,35.98]
[1755139182239,8.14241009,203.31,203.27,35.98]
[1755139182437,8.14241009,203.45,203.27,35.98]
[1755139182438,8.14241009,203.32,203.28,0.7]
[1755139182650,0.23,203.4,203.29,8.14241009]
[1755139182944,0.23,203.4,203.28,0.7]
[1755139182945,8.14241009,203.34,203.3,36.66]
[1755139183148,8.14241009,203.33,203.31,0.7]
[1755139183466,8.14241009,203.33,203.3,35.96]
[1755139183630,8.14241009,203.33,203.32,0.7]
[1755139184646,8.14241009,203.33,203.23,23.92469435]
[1755139184852,0.23,203.37,203.29,0.7]
[1755139185031,0.23,203.37,203.3,106.68]
[1755139185227,0.23,203.37,203.3,70.72]
[1755139185643,0.23,203.37,203.31,35.96]
[1755139186049,8.14241009,203.32,203.3,70.72]
[1755139186348,8.14241009,203.31,203.3,71.42]
[1755139186562,8.14241009,203.31,203.3,107.38]
[1755139186725,8.14241009,203.31,203.3,72.02]
[1755139186928,8.14241009,203.31,203.3,0.7]
[1755139187249,8.14241009,203.31,203.3,35.96]
[1755139187451,8.37241009,203.31,203.3,35.96]
[1755139187958,12.0088329,203.31,203.23,0.7]
[1755139188128,8.14241009,203.24,203.23,0.7]
[1755139189164,8.14241009,203.24,203.23,36.66]
[1755139190268,8.14241009,203.28,203.23,195.38469435]
[1755139190559,8.14241009,203.28,203.24,0.7]
[1755139190735,8.14241009,203.29,203.24,0.7]
[1755139190939,8.14241009,203.29,203.24,159.42469435]
[1755139191246,8.14241009,203.29,203.25,0.7]
[1755139191830,0.23,203.37,203.25,0.7]
[1755139192034,8.14241009,203.3,203.25,159.42469435]
[1755139192263,8.14241009,203.29,203.26,36.66]
[1755139192451,8.14241009,203.29,203.27,0.7]
[1755139192648,13.35271657,203.29,203.28,0.7]
[1755139193363,13.35271657,203.29,203.26,35.96]
[1755139193539,13.35271657,203.27,203.25,159.42469435]
[1755139193861,13.35271657,203.36,203.25,158.72469435]
[1755139193862,13.35271657,203.26,203.25,158.72469435]
[1755139194164,13.35271657,203.26,203.25,194.66469435]
[1755139195062,13.35271657,203.26,203.25,265.38469435]
[1755139195263,13.35271657,203.26,203.25,130.58469435]
[1755139197247,16.99781868,203.26,203.25,130.58469435]
[1755139198262,16.99781868,203.26,203.25,59.28469435]
[1755139198568,16.99781868,203.26,203.25,59.86469435]
[1755139199455,16.99781868,203.26,203.25,23.92469435]
[1755139199651,16.99781868,203.26,203.25,59.86469435]
[1755139200264,16.99781868,203.26,203.25,23.92469435]
[1755139200567,17.22781868,203.26,203.18,0.71]
[1755139200868,13.35271657,203.19,203.18,0.71]
[1755139201046,13.35271657,203.19,203.18,81.61]
[1755139201241,17.00335889,203.19,203.18,81.61]
[1755139201667,17.00335889,203.19,203.18,80.9]
[1755139201856,17.00335889,203.19,203.18,116.84]
[1755139204671,2.93064232,203.19,203.18,117.55]
[1755139204845,13.35271657,203.23,203.18,117.55]
[1755139205170,0.71,203.29,203.19,36.07]
[1755139205472,13.35271657,203.23,203.2,36.65]
[1755139205776,0.71,203.28,203.21,0.71]
[1755139205961,0.71,203.28,203.22,35.94]
[1755139207147,13.35271657,203.23,203.22,35.94]
[1755139207352,0.71,203.31,203.22,117.55]
[1755139207675,13.35271657,203.25,203.23,0.71]
[1755139207984,13.35271657,203.24,203.23,81.61]
[1755139208282,13.35271657,203.24,203.23,117.55]
[1755139208881,0.71,203.29,203.23,117.55]
[1755139209380,13.35271657,203.24,203.23,117.55]
[1755139209565,0.71,203.29,203.23,117.55]
[1755139209872,13.35271657,203.24,203.23,117.55]
[1755139210069,0.71,203.29,203.23,117.55]
[1755139210286,4.73217701,203.32,203.24,0.71]
[1755139210455,0.71,203.32,203.25,35.94]
[1755139210655,13.35271657,203.36,203.25,35.94]
[1755139210879,0.71,203.35,203.25,35.94]
[1755139211255,4.74635623,203.35,203.25,35.94]
[1755139211461,13.35271657,203.26,203.25,35.94]
[1755139211672,13.35271657,203.26,203.25,116.84]
[1755139212471,0.71,203.31,203.25,116.84]
[1755139212771,13.35271657,203.26,203.25,116.84]
[1755139213154,13.35271657,203.26,203.25,117.55]
[1755139213472,13.35271657,203.28,203.26,67.54728343]
[1755139213667,0.71,203.32,203.27,35.92]
[1755139213975,13.35271657,203.28,203.27,104.17728343]
[1755139215179,13.35271657,203.28,203.27,174.89728343]
[1755139216675,17.01406357,203.28,203.27,174.89728343]
[1755139218094,17.01406357,203.28,203.27,103.46728343]
[1755139218758,11.80283452,203.28,203.27,67.54728343]
[1755139218954,11.80283452,203.28,203.27,103.46728343]
[1755139219159,11.80283452,203.28,203.27,67.54728343]
[1755139219476,11.80283452,203.28,203.27,103.46728343]
[1755139220368,12.51283452,203.28,203.27,103.46728343]
[1755139220969,12.51283452,203.28,203.27,67.54728343]
[1755139221171,12.51283452,203.28,203.27,103.46728343]
[1755139221572,12.51283452,203.28,203.27,35.92]
[1755139222190,12.51752623,203.28,203.27,35.92]
[1755139222684,12.51752623,203.28,203.24,67.54728343]
[1755139222885,8.14148752,203.25,203.24,67.54728343]
[1755139223192,12.51752623,203.25,203.24,103.44728343]
[1755139223394,3.66603871,203.25,203.24,103.44728343]
[1755139223580,11.80752623,203.25,203.24,103.44728343]
[1755139224167,11.80752623,203.25,203.24,67.54728343]
[1755139224373,8.14148752,203.29,203.25,63.88124472]
[1755139224577,8.14148752,203.29,203.26,35.9]
[1755139224890,8.14148752,203.3,203.27,0.71]
[1755139225068,8.14148752,203.3,203.28,71.26]
[1755139225270,0.71,203.35,203.29,0.71]
[1755139225494,8.14148752,203.3,203.29,64.59124472]
[1755139225670,8.14148752,203.3,203.29,100.49124472]
[1755139226779,13.35211673,203.3,203.29,100.49124472]
[1755139227883,13.35211673,203.31,203.29,100.49124472]
[1755139228090,13.35211673,203.31,203.3,0.71]
[1755139228691,13.35211673,203.31,203.29,99.78124472]
[1755139228898,13.35211673,203.3,203.29,99.78124472]
[1755139229081,13.35211673,203.31,203.29,100.49124472]
[1755139229394,13.35211673,203.31,203.3,0.71]
[1755139230269,13.35211673,203.31,203.3,64.59124472]
[1755139231901,13.35211673,203.31,203.3,64.57124472]
[1755139232699,4.58807519,203.39,203.3,64.57124472]
[1755139233007,13.35211673,203.33,203.31,36.57]
[1755139233187,13.35211673,203.33,203.31,99.76124472]
[1755139233384,13.35211673,203.34,203.32,0.69]
[1755139233698,0.7,203.39,203.33,36.57]
[1755139233871,0.7,203.39,203.34,35.88]
[1755139234712,0.7,203.38,203.34,35.88]
[1755139235002,13.35211673,203.35,203.34,36.57]
[1755139235197,13.35211673,203.35,203.34,107.29]
[1755139235380,13.35211673,203.35,203.34,106.6]
[1755139236576,13.35211673,203.35,203.34,107.29]
[1755139236776,13.35211673,203.35,203.34,71.93]
[1755139237381,13.35211673,203.35,203.34,36.57]
[1755139238806,13.35211673,203.37,203.35,50.52912799]
[1755139239013,13.35211673,203.38,203.36,36.55]
[1755139239307,13.35211673,203.38,203.37,0.69]
[1755139239606,13.35211673,203.38,203.37,51.21912799]
[1755139240085,13.35211673,203.38,203.37,50.52912799]
[1755139241494,13.35211673,203.38,203.37,51.21912799]
[1755139244186,13.35211673,203.38,203.37,50.52912799]
[1755139244398,13.35211673,203.38,203.37,86.36912799]
[1755139245098,13.35211673,203.38,203.37,157.04912799]
[1755139245813,13.35211673,203.38,203.37,157.73912799]
[1755139247198,13.35211673,203.38,203.37,122.39912799]
[1755139248818,8.13151618,203.38,203.37,86.55912799]
[1755139249002,8.13151618,203.38,203.37,87.05912799]
[1755139251603,0.7,203.43,203.39,42.39761181]
[1755139251798,0.7,203.43,203.4,35.82]
[1755139252296,0.7,203.42,203.4,35.82]
[1755139252615,0.7,203.46,203.4,35.82]
[1755139252818,8.13151618,203.43,203.41,0.69]
[1755139253001,8.13151618,203.43,203.42,35.82]
[1755139253409,8.13151618,203.43,203.42,36.51]
[1755139255125,8.13151618,203.43,203.42,107.19]
[1755139256605,0.7,203.48,203.42,107.19]
[1755139256814,8.13151618,203.43,203.42,114.24761181]
[1755139257224,8.13151618,203.43,203.42,78.90761181]
[1755139258726,8.13151618,203.43,203.42,36.51]
[1755139259423,8.13151618,203.43,203.42,35.8]
[1755139260611,8.79151618,203.43,203.42,35.8]
[1755139261421,8.13151618,203.43,203.42,35.8]
[1755139261725,8.79151618,203.43,203.42,35.78]
[1755139262415,8.79151618,203.43,203.35,0.67]
[1755139262723,8.79151618,203.43,203.26,8.13151618]
[1755139262724,8.13151618,203.36,203.33,0.67]
[1755139262925,8.13151618,203.36,203.22,13.96350384]
[1755139262926,0.66,203.4,203.34,36.45]
[1755139263227,0.66,203.44,203.35,36.45]
[1755139263405,3.6464597,203.43,203.36,0.67]
[1755139263605,0.66,203.42,203.36,0.67]
[1755139264126,8.13151618,203.37,203.36,0.67]
[1755139264310,0.66,203.42,203.38,34.26609563]
[1755139264509,0.66,203.41,203.39,35.78]
[1755139264927,0.66,203.41,203.4,35.34]
[1755139265132,0.66,203.41,203.4,70.68]
[1755139265633,8.79151618,203.41,203.38,34.26609563]
[1755139265829,8.13151618,203.39,203.38,34.26609563]
[1755139266013,8.79151618,203.39,203.36,134.8]
[1755139266344,8.13151618,203.37,203.36,134.8]
[1755139266531,8.13151618,203.37,203.31,135.47]
[1755139266704,8.13151618,203.32,203.31,80.9]
[1755139267030,8.13151618,203.32,203.31,116.68]
[1755139267230,16.26303236,203.32,203.31,80.9]
[1755139267423,16.26303236,203.32,203.24,0.67]
[1755139267424,16.92303236,203.32,203.24,0.67]
[1755139267630,8.13151618,203.25,203.24,0.67]
[1755139267809,8.13151618,203.25,203.24,36.45]
[1755139268010,8.13151618,203.25,203.24,35.78]
[1755139273331,8.13151618,203.25,203.24,116.68]
[1755139275050,8.13151618,203.25,203.24,187.4]
[1755139275435,8.13151618,203.25,203.24,151.62]
[1755139275617,8.13151618,203.25,203.24,187.4]
[1755139276518,8.13151618,203.25,203.24,188.07]
[1755139277566,8.13151618,203.25,203.24,187.4]
[1755139277856,8.13151618,203.25,203.24,152.04]
[1755139278033,8.13151618,203.25,203.24,116.68]
[1755139278616,8.13151618,203.25,203.22,56.87]
[1755139278849,8.13151618,203.23,203.22,56.2]
[1755139279545,8.13151618,203.23,203.22,56.87]
[1755139279947,8.13151618,203.23,203.22,92.63]
[1755139280241,8.13151618,203.23,203.22,35.78]
[1755139281050,8.79151618,203.23,203.22,35.78]
[1755139281424,8.13151618,203.23,203.22,35.78]
[1755139282961,8.13151618,203.23,203.22,35.76]
[1755139283165,0.66,203.28,203.22,36.43]
[1755139283339,8.13151618,203.23,203.22,36.43]
[1755139285040,8.13151618,203.23,203.22,106.48]
[1755139285847,8.13151618,203.23,203.22,71.12]
[1755139286132,0.66,203.3,203.22,36.43]
[1755139286356,8.13151618,203.25,203.23,0.67]
[1755139286744,8.13151618,203.25,203.22,91.96]
[1755139286745,8.13151618,203.24,203.22,91.96]
[1755139287441,0.66,203.29,203.23,0.67]
[1755139287646,8.13151618,203.24,203.23,56.87]
[1755139289140,8.13151618,203.24,203.23,56.2]
[1755139289630,8.79151618,203.24,203.23,56.2]
[1755139289840,8.79151618,203.24,203.17,135.47]
[1755139289841,8.79151618,203.24,203.17,56.87]
[1755139290047,0.66,203.23,203.18,35.76]
[1755139290263,0.67,203.22,203.18,35.76]
[1755139291273,13.37179222,203.19,203.18,35.76]
[1755139291767,13.37179222,203.19,203.18,35.74]
[1755139292146,0.67,203.25,203.18,36.44]
[1755139292347,13.37179222,203.19,203.18,92.64]
[1755139294949,13.37179222,203.19,203.18,163.36]
[1755139295875,3.89414055,203.31,203.18,163.36]
[1755139296093,13.37179222,203.19,203.18,163.36]
[1755139296861,13.37179222,203.19,203.18,162.66]
[1755139297666,13.37179222,203.19,203.18,163.36]
[1755139297985,13.37179222,203.19,203.18,128.0]
[1755139298593,13.37179222,203.19,203.18,92.64]
[1755139300081,13.37179222,203.19,203.18,91.94]
[1755139304081,13.37179222,203.19,203.18,92.64]
[1755139304256,0.67,203.25,203.18,92.64]
[1755139304578,3.84604256,203.31,203.19,0.7]
[1755139304579,3.65049103,203.24,203.19,0.7]
[1755139304782,3.65049103,203.23,203.2,35.72]
[1755139304990,3.65049103,203.22,203.21,70.76]
[1755139305788,13.37179222,203.22,203.21,70.76]
[1755139306097,17.02228325,203.22,203.21,70.76]
[1755139307357,17.02228325,203.22,203.21,106.48]
[1755139307562,17.0286209,203.22,203.21,106.48]
[1755139307799,17.0286209,203.22,203.21,162.68]
[1755139308973,17.0286209,203.22,203.21,127.3]
[1755139309286,17.0286209,203.22,203.21,91.92]
[1755139310780,17.0286209,203.22,203.21,56.2]
[1755139310975,17.0286209,203.22,203.21,91.92]
[1755139311989,3.65682868,203.22,203.21,36.42]
[1755139313666,3.65682868,203.22,203.21,92.62]
[1755139315077,3.65682868,203.22,203.21,163.34]
[1755139315294,3.65682868,203.24,203.21,163.34]
[1755139315498,3.65682868,203.23,203.22,0.7]
[1755139315697,3.65682868,203.24,203.22,0.7]
[1755139315884,8.14240922,203.25,203.23,35.7]
[1755139316089,3.67209197,203.24,203.23,35.7]
[1755139316812,3.67209197,203.24,203.23,36.4]
[1755139318195,8.14240922,203.26,203.23,36.4]
[1755139318196,3.67209197,203.25,203.23,36.4]
[1755139318496,3.67209197,203.25,203.24,0.7]
[1755139319700,11.81450119,203.25,203.24,56.9]
[1755139319999,11.81450119,203.25,203.2,0.7]
[1755139320191,8.14240922,203.23,203.21,35.68]
[1755139320580,8.14240922,203.23,203.22,0.7]
[1755139320902,3.67081965,203.23,203.22,0.7]
[1755139321295,3.67081965,203.23,203.22,36.38]
[1755139322192,12.47322887,203.23,203.22,35.68]
[1755139322393,12.47322887,203.23,203.19,56.2]
[1755139322603,8.14240922,203.2,203.19,56.2]
[1755139322788,3.67081965,203.2,203.19,35.68]